{"text_format":"2","workbook":"xlsx","n_sheets":5,"sheets":["Resumen","Lote 1","Lote 2","Láminas 1","Láminas 2"],"not_rendered":{"charts":0,"images":0,"macros":0,"external_links":0,"defined_names":3,"comments":0,"pivot_tables":0},"unopened":[],"bounds":{"document_bytes":16777216,"sheet_cells":100000,"run_cost":"one","rows_first":2000,"rows_last":500,"rows_between":2000,"halvings":0,"cell_chars":16384,"cell_head_chars":4096},"cells_cut":0,"cells_raw":0,"read":"whole","date_system":"1900"}

{"sheet":"Resumen","index":0,"n_rows":19,"n_cols":5,"rows_kept":19,"cut":false,"hidden":false,"merged":[[0,1,0,4],[1,1,1,4],[2,1,2,4],[4,1,4,4],[5,2,5,3]]}
[null,"CORTE SUPREMA DE JUSTICIA - PROGRAMA DE LAS NACIONES UNIDAS PARA EL DESARROLLO"]
[null,"\"PROGRAMA DE INFRAESTRUCTURA EDILICIA CSJ - PNUD\""]
[null,"SDP/14311/102/2025 - PROVISIÓN Y MONTAJE DE LAS SEÑALIZACIONES INTERIORES Y EXTERIORES PARA LOS JUZGADOS DE 1° INSTANCIA DE FERNANDO DE LA MORA Y EL PALACIO DE JUSTICIA DE FILADELFIA."]
[]
[null,"RESUMEN DEL PRESUPUESTO"]
[null,"Lote","Descripción",null,"Precio Total"]
[null,"Nº",null,null,"Gs. Iva Incluido"]
[]
[null,1,"JUZGADOS DE 1° INSTANCIA DE FERNANDO DE LA MORA"]
[null,"1.1","Señalizaciones interiores y exteriores",null,{"$f":"+'Lote 1'!H56","v":0}]
[null,2,"PALACIO DE JUSTICIA DE FILADELFIA"]
[null,"1.1","Señalizaciones interiores y exteriores",null,{"$f":"+'Lote 2'!H50","v":0}]
[null,null,"Total General",null,{"$f":"+E10+E12","v":0}]
[null,null,"Son Guaranies . . . . . . . "]
[]
[]
[null,"OBS.","Prestar especial atención a las especificaciones y detalles de cada item porque pueden variar "]
[null,null,"de acuerdo al lote aun teniendo el mismo código."]
[null,null,"Las Planillas en formato editable deberan ser descargadas del siguiente link. "]

{"sheet":"Lote 1","index":1,"n_rows":56,"n_cols":8,"rows_kept":56,"cut":false,"hidden":false,"merged":[[1,1,1,7],[55,1,55,6],[2,1,2,7],[3,1,3,7]]}
[]
[null,{"$f":"+Resumen!B1","v":"CORTE SUPREMA DE JUSTICIA - PROGRAMA DE LAS NACIONES UNIDAS PARA EL DESARROLLO"}]
[null,{"$f":"+Resumen!B2","v":"\"PROGRAMA DE INFRAESTRUCTURA EDILICIA CSJ - PNUD\""}]
[null,"LOTE 1 - JUZGADOS DE 1° INSTANCIA DE FERNANDO DE LA MORA"]
[]
[null,"ITEM","Descripción","Ubicación","Código","Total","Precio Unit. Gs.","Precio Total GS."]
[null,1,"Cartel con símbolo y texto, dos placas combinadas, aplicado a mampara o muro. Medida Placa: 15x15cm\nMaterial: Doble Placa ACM Marron de 4mm perfilado. Sobrebase de acm marrón. Terminaciones de los bordes y cara inversa pintada con laca color blanco acabado mate.  Aplicado a mampara o muro con cinta de doble capa de alto desempeño.  Ver detalles en anexo \nTipo: aplicado a una cara \nColor: ACM Marron.\nMedidas Finales: 15x15cm\nTexto y símbolo: en film vinílico Blanco\n","Interior","A","382",null,{"$f":"+F7*G7","v":0}]
[null,2,"Cartel indicativo con texto, dos placas combinadas, aplicado a mampara o muro. Medida Placa: 30x8cm\nMaterial: Doble Placa ACM Marron de 4mm perfilado, sobrebase de acm marrón. Terminaciones de los bordes y cara inversa pintada con laca color blanco acabado mate. Aplicado a mampara o muro con cinta de doble capa de alto desempeño . Ver detalles en anexo \nTipo: aplicado a una cara \nColor: ACM Marron.\nMedidas finales: 30x8cm  \nTexto y símbolo: en film vinílico Blanco\n","Interior","B",130,null,0]
[null,3,"Cartel vertical con símbolo y texto, aplicado a mampara o muro. Medida Placa: 30x15cm\nMaterial: Placa ACM Marrón de 4mm perfilado. Rigidización con bastidor de caño metálico de 10mm en el perimetro. aplicado a mampara o muro. Terminaciones de los bordes y cara inversa pintada con laca color blanco acabado mate. Sujeción con cinta de doble capa de alto desempeño. Ver detalles en anexo \nTipo: aplicado a una cara \nColor: ACM Marron.\nMedidas finales: 15x30cm  \nTexto y símbolo: en film vinílico Blanco\nVer detalles.","Interior","C",50,null,0]
[null,4,"Dispositivo Movil Aplicado. Medida Placa: 30x8cm\nTipo: aplicado a una cara \nMaterial: Placa ACM Marrón de 4mm perfilado y sobrebase, terminaciones de los bordes y cara inversa pintada con laca color blanco acabado mate, aplicado a mampara o muro. Sujeción mediante con cinta de doble capa de alto desempeño. Dispositivo móvil deslizante para ocultar uno de los textos sobrepuesto a la placa superior.\nColor: ACM Marrón\nMedidas finales: 30x8cm  \nTexto y símbolo: en film vinílico Blanco\nVer detalles.","Interior","CH",2,null,0]
[null,5,"Cartel vertical con símbolo y texto, dos placas combinadas, montado en bandera a mampara o muro. Medida Placa: 30x15cm\nTipo: texto y símbolos aplicados en bandera a dos caras\nMaterial: Dos placas bases y dos sobrebases de ACM de 4mm.  Terminaciones de los bordes  con pintura laca color blanco acabado mate. Soportes de chapa doblada de acero inoxidable. Sistema independiente para montaje de soporte en pared y cartel. Fijaciones con tarugos de polietileno y tonillos de 8mm. \nColor: ACM Marrón\nMedidas: Base: 29x14cm. Sobrebase: 30x15cm\nTexto y símbolo: en film vinílico blanco\nVer detalles.","Interior","D",38,null,0]
[null,6,"Cartel con texto, dos placas combinadas, suspendida al cielorraso a 2 caras . Medida Placa: 25x25cm \nTipo: texto y símbolos aplicados a doble cara\nMaterial: dos placas de ACM de 4mm unidas por bastidor perimetral de caños metálicos de 10mm . Terminaciones de los bordes, cara inversa de las placas y caños bastidor pintado con laca color blanco acabado mate. Colgante del techo mediante cabos de acero de 1,5mm y ganchos de chapa de acero inoxidable doblado de 0,8mm. O tonillos galvanizados de 3/8\" perforado en el centro para colocación en cielorraso y cartel. Longitud de cabos variable.\nMedidas: Medidas Placa: 0,25x0,25 mts.\nColor: ACM Marrón\nTexto : en film vinílico blanco\nVer detalles.","Interior","E",34,null,0]
[null,7,"Cartel vertical con símbolo y texto, dos placas combinadas, montado en bandera a mampara o muro. Medida Placa: 30x30 cm\nTipo: texto y símbolos aplicados en bandera a dos caras\nMaterial: Dos placas bases y dos sobrebases de ACM de 4mm. Soportes de chapa doblada de acero inoxidable. Sistema independiente para montaje de soporte en pared y cartel. Fijaciones con tarugos de polietileno y tonillos de 8mm.  Terminaciones de los bordes  con pintura laca color blanco acabado mate\nColor: ACM Marrón\nMedidas: Medidas finales :0,30x0,30mts.\nTexto y símbolo: en film vinílico blanco\nVer detalles.","Interior","F",27,null,0]
[null,8,"Cartel con texto, dos placas combinadas, suspendido del cielorraso a 2 caras . Medida Placa: 1,20x20cm\nTipo: texto y símbolos aplicados a una cara\nMaterial: dos placas de ACM de 4mm unidas por bastidor perimetral de caños metálicos de 10mm . Terminaciones de los bordes, cara inversa de las placas y caños bastidor pintado con laca color blanco acabado mate. Colgante del techo mediante cabos de acero de 1,5mm y ganchos de chapa de acero inoxidable doblado de 0,8mm. O tornillos galvanizados de 3/8\" perforado en el centro para colocación en cielorraso y cartel.\nMedidas: Medidas Placa: 1,20x0,20 mts. Longitud de cabos variable.\nColor: ACM Marrón\nTexto : en film vinílico blanco\nVer detalles.","Interior","G",42,null,0]
[null,9,"Cartel con texto, dos placas combinadas, colgado de la losa y/o viga a 2 caras . Medida Placa: 1,20x30cm\nTipo: texto y símbolos aplicados a dos caras\nMaterial: dos placas de ACM de 4mm unidas por bastidor perimetral de caños metálicos de 10mm. Terminaciones de los bordes, bastidor pintado con antioxido y pintura sintética negra. Colgante de la  losa y/o viga mediante cabos de acero de 1,5mm y ganchos de chapa de acero inoxidable doblado de 0,8mm. Longitud de cabos variable.\nMedidas. Medidas Placa: 1,20x0,30 mts.\nColor: ACM Naranja\nTexto : en film vinílico negro\nVer detalles.\n","Interior","G.e",13,null,0]
[null,10,"Cartel indicativo por niveles. Palacio de Justicia. Distribución de Oficinas por niveles.  Medida sobrebase: 0,70x1,60 mts.\nTotem interior de estructura deEstructura  de caño de aluminio anodizado natural de 40x40mm, o caño metálico de 40x80mm esp. 2mm; soldado, pulido y protegido\n con pintura electrostática color aluminio. Con 2 placas de ACM marrón, textos y diseños aplicados a una cara por cada placa. Terminaciones de los bordes de las placas y cara inversa pintada con laca color blanco acabado mate. Regatones de goma en base del soporte, 4un.\nColor: ACM marrón\nTexto : en film vinílico blanco\nVer detalles.\n","Interior","H",8,null,0]
[null,11,"Cartel indicativo con texto, dos placas combinadas, aplicado a mampara o muro. Medida Placa: 30x5cm\nMaterial: Doble Placa ACM Marron de 4mm perfilado, terminaciones de los bordes y cara inversa pintada con laca color blanco acabado mate. Aplicado a mampara o muro con cinta de doble capa de alto desempeño . Ver detalles en anexo \nTipo: aplicado a una cara \nColor: ACM Marron.\nMedidas finales: 31x5cm  \nTexto y símbolo: en film vinílico Blanco\nVer detalles.","Interior","I",36,null,0]
[null,12,"Cartel con símbolo y texto,  aplicado a mampara o muro. Medidas Finales: 31x11cm\nCartel indicativo con texto, placas aplicado a mampara o muro. \nMaterial: Placa ACM Blanco de 4mm perfilado, terminaciones de los bordes y cara inversa pintada con laca color blanco acabado mate. Aplicado a mampara o muro con cinta de doble capa de alto desempeño . Ver detalles en anexo \nTipo: aplicado a una cara \nColor: ACM Blanco.\nMedidas finales: 31x11cm\nTexto y símbolo: en film vinílico Marrón\nVer detalles.","Interior","J",36,null,0]
[null,13,"Panel de ACM aplicado a pared o mampara. Medida sobrebase: 70x100cm\nMaterial:  Placa ACM Blanco de 4mm perfilado. Rigidización con bastidor de caño metálico de 30mm en el perimetro.  Terminaciones de los bordes, bastidor pintado con laca color blanco acabado mate. aplicado a mampara o muro. \nTipo: Aplicado al muro a una cara.\nColor: Placas: ACM Blanco\nMedidas Finales: Placa: 70x100 cm\nTexto y símbolo: en film vinílico marrón\nVer detalles","Interior","K",54,null,0]
[null,14,"Cartel vertical con símbolo y texto, dos placas combinadas, aplicado a mampara o muro. Medida Placa Final: 15x45cm\nMaterial: Placa ACM Marrón de 4mm perfilado. Rigidización con bastidor de caño metálico de 10mm en el perimetro. aplicado a mampara o muro.  Terminaciones de los bordes, cara inversa y bastidor pintado con laca color blanco acabado mate. Sujeción con cinta de doble capa de alto desempeño . \nTipo: aplicado a una cara \nColor: ACM Marrón.\nMedidas finales: 15x45cm  \nTexto y símbolo: en film vinílico blanco\nVer detalles.","Interior","L",35,null,0]
[null,15,"Pintura acrílica vial, de números (1, 2, 3 ) en celdas, aplicado a muro. Medidas: altura de números 60cm y espesor 10cm. ","Interior","N",2,null,0]
[null,16,"Escudo del Paraguay: en acero inoxidable con terminación satinada esmerilada, espesor minimo 3mm, diámetro exterior de circunferencia 60cm. Sobre base de PVC rígido negro de 1,5cm de espesor. Para su montaje en revestido de madera de sala de Juicios Orales realizar fijación mediante tornillos y tarugos con una separacion minima del revestido de 5 cm.\nVer detalles.","Interior","Ñ.1",4,null,0]
[null,17,"Pintura acrílica vial  indicadora de estacionamiento de vehiculos para minusválidos y embarazadas. Base epóxica en blanco y azul\nDiámetro exterior 1,20m.\nVer detalles.","Interior-Exterior","O",7,null,0]
[null,"18","Cartel vertical con símbolo y texto, dos placas combinadas, aplicado a mampara o muro. Medida Placa: 40X50cm\nMaterial:  Placa ACM Marrón de 4mm perfilado. Rigidización con bastidor de caño metálico de 30mm en el perimetro.  Terminaciones de los bordes, cara inversa y bastidor pintado con laca color blanco acabado mate. aplicado a mampara o muro. \nTipo: Aplicado al muro a una cara.\nColor: Placas: ACM Marrón\nMedidas finales: 40X50cm  \nTexto y símbolo: en film vinílico de colores según detalle.\nVer detalles.\n","Interior","P",17,null,0]
[null,19,"Pintura acrílica vial de números en estacionamiento de vehículos sobre pavimento de hormigón, Diametro de 0,70 mts. Interior/exterior","Interior-Exterior","Q",86,null,0]
[null,20,"Banda separadora de vehículos de pintura acrílica vial. Ancho de banda 15cm y 5m de longitud. Considerar en unidades.","Interior-Exterior","R",124,null,0]
[null,21,"Pintura acrílica vial, indicadora en cordon de calle amarilla para no estacionar vehiculos frente a boca de incendio siamesa. Sobre cordon de hormigón, acrilica vial. Ancho 30 cm. largo 6 m. Unidad","Exterior","RR",2,null,0]
[null,22,"Pintura acrílica vial de franjas amarillas de flechas direccionales en estacionamientos indicando doble sentido o sentido único de circulación sobre pavimento de hormigón. Medidas : 1,30x3,00mts","Interior/Exterior","R.a",20,null,0]
[null,23,"Banda separadora de vehículos de pintura acrílica vial. Ancho de banda 15cm y 2,50m de longitud. Considerar en unidades.","Interior-Exterior","Rm",12,null,0]
[null,"24","Cartel en letras corpóreas de material seún Tipo. Letras individuales de acero inoxidable. Adosadas al vidrio. Según planos\nMaterial: Según detalles\nColor: del material\nTerminación con barníz natural sólo para los casos exteriores\nVer detalles.\nTipo: Letras individuales de acero inoxidable satinado esmerilado de 20 cm de alto, espesor 4cm y largo total 1,55 Texto: Cafetería\nUbicación: Planta baja, fachada abertura de Vidrio","Exterior","T1",1,null,0]
[null,"25","Cartel en letras corpóreas de material seún Tipo. Letras individuales de PVC rígido. Adosadas al Muro. Según planos\nColor: a definir\nTerminación con barníz natural sólo para los casos exteriores\nVer detalles.\nTipo: Letras individuales de PVC rígido, colores a definición, de 40 cm de alto, espesor 4cm y largo 3,30 mts. Texto: Guardería Infantil\nUbicación: Subsuelo 2, fachada muro de mampostería\n","Exterior","T2",1,null,0]
[null,"26","Cartel en letras corpóreas de material seún Tipo. Letras individuales de acero inoxidable. Adosadas al muro. Según planos\nColor: del material\nTerminación con barníz natural sólo para los casos exteriores\nVer detalles.\nTipo: Letras individuales de acero inoxidable satinado esmerilado de 20 cm de alto, espesor 8cm y largo total 5,80/ 3,90. Texto: \nTEKOJOJA RÓGA TENONDEGUA ARAPEHE /\nJUZGADOS DE 1° INSTANCIA \nUbicación: 1º piso, fachada abertura de Vidrio","Exterior","T3",1,null,0]
[null,"27","Cartel en letras corpóreas de material seún Tipo. Letras individuales de acero inoxidable. Adosadas al muro. Según planos\nColor: del material\nTerminación con barníz natural sólo para los casos exteriores\nVer detalles.\nTipo: Letras individuales de acero inoxidable satinado esmerilado de 20 cm de alto, espesor 8cm y largo total 2,40. Texto: \nJUZGADO DE PAZ\nUbicación: Planta baja, fachada muro de mampostería","Interior","T4",1,null,0]
[null,28,"Módulo Autoportante para Exterior, dos placas de ACM, montado en bastidor de tubo de aluminio negro con refuerzos interiores. Medida Placa: 0,40x1,20 mts.\nTipo: texto y símbolos aplicados a dos caras\nMaterial: 2 placas de ACM de 4mm, aplicado en bastidor de estructura  de caño de aluminio anodizado natural de 40x40mm, o caño metálico de 40x80mm\n esp. 2mm; soldado, pulido y protegido con pintura electrostática color aluminio. Terminaciones de los bordes y cara inversa de las placas pintadas con laca color negro acabado mate. \nColor: ACM Marrón\nMedidas: Medidas finales :0,38x1,48 mts. Medidas placa: 0,40x1,20 mts.  \nTexto y símbolo: en film vinílico blanco, protección con barniz poliuretano\nVer detalles.","Exterior","U",12,null,0]
[null,29,"Módulo Autoportante para Exterior, dos placas de ACM, montado en bastidor de tubo de aluminio o caño metálico, con refuerzos interiores . Medida Placa: 0,30x0,15 mts.\nTipo: texto y símbolos aplicados  a dos caras\nMaterial: 2 de placas ACM de 4mm aplicado a bastidor de caños de aluminio color negro de 40x80mm, fijación al bastidor a travez de tubo de refuerzo de aluminio anodizado natural de 40x80mm y planchuelas remachadaso, o caño metálico de 40x80mm\n esp. 2mm; soldado, pulido y protegido con pintura electrostática color aluminio.. Terminaciones de los bordes y cara inversa de las placas pintadas con laca color negro acabado mate. \nColor: ACM Marrón\nMedidas: Medidas bastidor :Ver detalle. Medidas placa: 0,30x0,15 mts.  \nTexto y símbolo: en film vinílico blanco, protección con barniz poliuretano\nVer detalles.\n","Exterior","V",7,null,0]
[null,30,"Cartel con símbolo y texto, dos placas combinadas, aplicado a mampara o muro. Medida Placa: 40x40cm\nMaterial: Placa ACM de 4mm perfilado,  terminaciones de los bordes y cara inversa pintada con laca color blanco acabado mate, aplicado a muro, atornillado a muro; con planchuelas metálicas  de fijación de 5cmx5cm en caso de rejas.  Ver detalles en anexo \nTipo: aplicado a una cara \nColor: ACM Marrón\nMedidas Finales: 40x40cm\nTexto y símbolo: en film vinílico blanco, protección con barniz poliuretano\nVer detalles.","Exterior","W",6,null,0]
[null,31,"Cartel con símbolo y texto, dos placas combinadas, aplicado a muro. Medida Placa: 30x15cm\nMaterial: Placa ACM de 4mm perfilado,  terminaciones de los bordes y cara inversa pintada con laca color blanco acabado mate, aplicado a muro, atornillado a muro; con planchuelas metálicas  de fijación de 5cmx5cm en caso de rejas. Ver detalles en anexo muro. Ver detalles en anexo \nTipo: aplicado a una cara \nColor: ACM Marrón\nMedidas Finales: 30x15cm\nTexto y símbolo: en film vinílico blanco, protección con barniz poliuretano\nVer detalles.","Exterior","X",2,null,0]
[null,32,"Módulo Autoportante para Exterior, dos placas de ACM, montado en bastidor de tubo de aluminio con refuerzos interiores o caños metálicos. Medida Placa: 0,40X1,30\nTipo: texto y símbolos aplicados a dos caras\nMaterial: placas ACM de 4mm. Aplicado a bastidor de caños de aluminio color negro de 40x80mm, fijación al bastidor a travez de tubos de refuerzo de aluminio anodizado de 40x80mm y planchuelas remachadas; o caño metálico de 40x80mm\n esp. 2mm; soldado, pulido y protegido con pintura electrostática. Terminaciones de los bordes y cara inversa de las placas pintadas con laca color negro acabado mate. \nColor: ACM Marrón\nMedidas: Medidas finales :0,48x2,00 mts. Medidas placa: 0,40x1,30 mts.  \nTexto y símbolo: en film vinílico Blanco, protección con barniz poliuretano\nVer detalles.\n","Exterior","Y",2,null,0]
[null,33,"Carteles de señalización de calles\nTipo: en bandera a aplicado (a ambas caras) con carteles en cruz\nMaterial: Chapa N° 14 con pintura antióxido para intemperie y terminación pintura automotriz.Estructura: caño galvanizado de 2\", planchuela de unión de 1 1/2\" x 3/16\". Sujecion mediante bulones galvanizados de 3/4\" con arandelas a presion.\nColor: Beige con marrón. Medidas: alto de caño 3,00m, chapas con nombre de calles 34x68cm, con sentido de calles 34x34cm, separación entre carteles 4cm\nTexto: En film vinílico negro con protección en barniz poliuretano para exterior.\nVer detalles.","Exterior","Z",4,null,0]
[null,34,"Pintura acrílica vial de  area de señalización de \"No Estacionar\" en zonas de estacionamiento,  interior/exterior. Superficie: 15 m2","Interior","A.p",5,null,0]
[null,35,"Cartel  ENTRADA - SALIDA  - ESTACIONAMIENTO DE MAGISTRADOS / \"altura máxima\"\nMaterial: Placa ACM Silver de 4mm perfilado y plegado a 90°, terminaciones del plegado con silicona negra, cara inversa pintada con laca color negra acabado mate. Rigidización con parantes de PVC rígido de 20mm pegado al ACM. aplicado a muro. Sujeción mediante ojales en el ACM. Ver detalles en anexo \nTipo: aplicado a una cara \nMedidas placa:4,00 m x 40 cm    \nTexto : En film vinílico negro con protección en barniz poliuretano para exterior    \nVer detalles.","Interior","A.c",1,null,0]
[null,36,"Franjas de color naranjado con pintura látex interior semibrillo  en muros. Interior / exterior. Altura: 1,80m. Longitud en ml. (metro lineal). distancia libre desde el piso: 0,40mts.","Interior","A.g.m",183,null,0]
[null,37,"Franjas de color naranjado con pintura látex interior semibrillo. Interior / exterior. Altura: 1,80m., distancia libre desde el piso: 0,40mts.  Unidades de pilares. (Considerar medida media de pilares de 0,6x0,3m). Area de cobertura por pilar 5m2.","Interior","A.g.p",38,null,0]
[null,38,"Impresión digital adhesiva sobre abertura de vidrio en vinilo adhesivo fundido y termoformable. Dimensiones aproximadas: 3,80x1,20mts. Superficie: 5 m2","Exterior","A.i",1,null,0]
[null,39,"Impresión digital adhesiva en muros en vinilo adhesivo fundido y termoformable.\nBase de aplicación con placa de PVC rígido de 5mm. Dimensiones aproximadas: 1,20x 2,40mts. Superficie: 2,90m2","Interior","P.m",14,null,0]
[null,40,"Impresión digital adhesiva en muros en vinilo adhesivo fundido y termoformable. Base de aplocación: 5 unidades de circulos de base placa de PVC rígido de 5mm. Dimensiones :15cm de diametro.  (Imagenes fondo de percheritos)","Interior","P.m15",3]
[null,41,"Impresión digital adhesiva simil arenado en puertas corredizas de vidrio, con calado del diseño del modelo; pegado en lado interior del vidrio. Medidas: 4,20x0,60mts","Interior","PLOT1",3,null,0]
[null,42,"Impresión digital adhesiva simil arenado en puertas corredizas de vidrio, con calado del diseño del modelo; pegado en lado interior del vidrio. Medidas: 3,00x0,50mts","Interior","PLOT2",1,null,0]
[null,43,"Pintura artistica sobre Muros de Fachada\nPintura acrílica tipo artistica sobre muros de fachada en Guardería diseño según modelo. Dimensiones longitud de 18mts y altura de 3,60mts. Superficie Cubierta: 47m2","Interior","P.ar1",1,null,0]
[null,44,"Pintura artistica sobre Muros de Fachada\nPintura acrílica tipo artistica sobre muros de fachada en Guardería diseño según modelo. Dimensiones longitud de 3mts y altura de 3,40mts. Superficie Cubierta: 10 m2","Interior","P.ar2",1,null,0]
[null,45,"Pintura en cielorrasos\nPintura acrílica en cielorrasos de aulas de Guardería diseño según modelo. Superficie: 1,10 m2","Interior","P.cr1",6,null,0]
[null,46,"Pintura en cielorrasos\nPintura acrílica en cielorrasos de aulas de Guardería diseño según modelo. Superficie: 3,70 m2","Interior","P.cr2",6,null,0]
[null,47,"Elaboracion de inventario en base a la descripcion de las especificaciones tecnicas. \nSe considera como global para todo el equipamiento a proveer.\nVer detalles.","-","General",1,null,0]
[null,48,"Deposito de las señalizaciones interiores y exteriores. Incluye guardia 24 horas y seguro contra todo riesgo.","-","General",1,null,0]
[null,49,"Montaje de las señalizaciones interiores y exteriores que debera ser realizado en un plazo no mayor a un mes antes de la recepcion provisoria del lote.","-","General",1,null,0]
[null,"TOTAL GENERAL IVA INCLUIDO",{"$nulls":5},{"$f":"SUM(H7:H55)","v":0}]

{"sheet":"Lote 2","index":2,"n_rows":50,"n_cols":8,"rows_kept":50,"cut":false,"hidden":false,"merged":[[1,1,1,7],[2,1,2,7],[3,1,3,7],[49,1,49,6]]}
[]
[null,{"$f":"+Resumen!B1","v":"CORTE SUPREMA DE JUSTICIA - PROGRAMA DE LAS NACIONES UNIDAS PARA EL DESARROLLO"}]
[null,{"$f":"+Resumen!B2","v":"\"PROGRAMA DE INFRAESTRUCTURA EDILICIA CSJ - PNUD\""}]
[null,"LOTE 2 - PALACIO DE JUSTICIA DE FILADELFIA"]
[]
[null,"ITEM","Descripción","Ubicación","Código","Total","Precio Unit. Gs.","Precio Total GS."]
[null,1,"Cartel con símbolo y texto, dos placas combinadas, aplicado a mampara o muro. Medida Placa: 15x15cm\nMaterial: Doble Placa ACM Marron de 4mm perfilado. Sobrebase de acm marrón. Terminaciones de los bordes y cara inversa pintada con laca color blanco acabado mate.  Aplicado a mampara o muro con cinta de doble capa de alto desempeño.  Ver detalles en anexo \nTipo: aplicado a una cara \nColor: ACM Marron.\nMedidas Finales: 15x15cm\nTexto y símbolo: en film vinílico Blanco\n","Interior","A","237",null,{"$f":"+F7*G7","v":0}]
[null,2,"Cartel indicativo con texto, dos placas combinadas, aplicado a mampara o muro. Medida Placa: 30x8cm\nMaterial: Doble Placa ACM Marron de 4mm perfilado, sobrebase de acm marrón. Terminaciones de los bordes y cara inversa pintada con laca color blanco acabado mate. Aplicado a mampara o muro con cinta de doble capa de alto desempeño . Ver detalles en anexo \nTipo: aplicado a una cara \nColor: ACM Marron.\nMedidas finales: 30x8cm  \nTexto y símbolo: en film vinílico Blanco\n","Interior","B",89,null,0]
[null,3,"Cartel vertical con símbolo y texto, aplicado a mampara o muro. Medida Placa: 30x15cm\nMaterial: Placa ACM Marrón de 4mm perfilado. Rigidización con bastidor de caño metálico de 10mm en el perimetro. aplicado a mampara o muro. Terminaciones de los bordes y cara inversa pintada con laca color blanco acabado mate. Sujeción con cinta de doble capa de alto desempeño. Ver detalles en anexo \nTipo: aplicado a una cara \nColor: ACM Marron.\nMedidas finales: 15x30cm  \nTexto y símbolo: en film vinílico Blanco\nVer detalles.","Interior","C",24,null,0]
[null,4,"Dispositivo Movil Aplicado. Medida Placa: 30x8cm\nTipo: aplicado a una cara \nMaterial: Placa ACM Marrón de 4mm perfilado y sobrebase, terminaciones de los bordes y cara inversa pintada con laca color blanco acabado mate, aplicado a mampara o muro. Sujeción mediante con cinta de doble capa de alto desempeño. Dispositivo móvil deslizante para ocultar uno de los textos sobrepuesto a la placa superior.\nColor: ACM Marrón\nMedidas finales: 30x8cm  \nTexto y símbolo: en film vinílico Blanco\nVer detalles.","Interior","CH",1,null,0]
[null,5,"Cartel vertical con símbolo y texto, dos placas combinadas, montado en bandera a mampara o muro. Medida Placa: 30x15cm\nTipo: texto y símbolos aplicados en bandera a dos caras\nMaterial: Dos placas bases y dos sobrebases de ACM de 4mm.  Terminaciones de los bordes  con pintura laca color blanco acabado mate. Soportes de chapa doblada de acero inoxidable. Sistema independiente para montaje de soporte en pared y cartel. Fijaciones con tarugos de polietileno y tonillos de 8mm. \nColor: ACM Marrón\nMedidas: Base: 29x14cm. Sobrebase: 30x15cm\nTexto y símbolo: en film vinílico blanco\nVer detalles.","Interior","D",20,null,0]
[null,6,"Cartel con texto, dos placas combinadas, suspendida al cielorraso a 2 caras . Medida Placa: 25x25cm \nTipo: texto y símbolos aplicados a doble cara\nMaterial: dos placas de ACM de 4mm unidas por bastidor perimetral de caños metálicos de 10mm . Terminaciones de los bordes, cara inversa de las placas y caños bastidor pintado con laca color blanco acabado mate. Colgante del techo mediante cabos de acero de 1,5mm y ganchos de chapa de acero inoxidable doblado de 0,8mm. O tonillos galvanizados de 3/8\" perforado en el centro para colocación en cielorraso y cartel. Longitud de cabos variable.\nMedidas: Medidas Placa: 0,25x0,25 mts.\nColor: ACM Marrón\nTexto : en film vinílico blanco\nVer detalles.","Interior","E",15,null,0]
[null,7,"Cartel vertical con símbolo y texto, dos placas combinadas, montado en bandera a mampara o muro. Medida Placa: 30x30 cm\nTipo: texto y símbolos aplicados en bandera a dos caras\nMaterial: Dos placas bases y dos sobrebases de ACM de 4mm. Soportes de chapa doblada de acero inoxidable. Sistema independiente para montaje de soporte en pared y cartel. Fijaciones con tarugos de polietileno y tonillos de 8mm.  Terminaciones de los bordes  con pintura laca color blanco acabado mate\nColor: ACM Marrón\nMedidas: Medidas finales :0,30x0,30mts.\nTexto y símbolo: en film vinílico blanco\nVer detalles.","Interior","F",14,null,0]
[null,8,"Cartel con texto, dos placas combinadas, suspendido del cielorraso a 2 caras . Medida Placa: 1,20x20cm\nTipo: texto y símbolos aplicados a una cara\nMaterial: dos placas de ACM de 4mm unidas por bastidor perimetral de caños metálicos de 10mm . Terminaciones de los bordes, cara inversa de las placas y caños bastidor pintado con laca color blanco acabado mate. Colgante del techo mediante cabos de acero de 1,5mm y ganchos de chapa de acero inoxidable doblado de 0,8mm. O tornillos galvanizados de 3/8\" perforado en el centro para colocación en cielorraso y cartel.\nMedidas: Medidas Placa: 1,20x0,20 mts. Longitud de cabos variable.\nColor: ACM Marrón\nTexto : en film vinílico blanco\nVer detalles.","Interior","G",32,null,0]
[null,9,"Cartel indicativo por niveles. Palacio de Justicia. Distribución de Oficinas por niveles.  Medida sobrebase: 0,70x1,60 mts.\nTotem interior de estructura deEstructura  de caño de aluminio anodizado natural de 40x40mm, o caño metálico de 40x80mm esp. 2mm; soldado, pulido y protegido\n con pintura electrostática color aluminio. Con 2 placas de ACM marrón, textos y diseños aplicados a una cara por cada placa. Terminaciones de los bordes de las placas y cara inversa pintada con laca color blanco acabado mate. Regatones de goma en base del soporte, 4un.\nColor: ACM marrón\nTexto : en film vinílico blanco\nVer detalles.\n","Interior","H",4,null,0]
[null,10,"Cartel indicativo con texto, dos placas combinadas, aplicado a mampara o muro. Medida Placa: 30x5cm\nMaterial: Doble Placa ACM Marron de 4mm perfilado, terminaciones de los bordes y cara inversa pintada con laca color blanco acabado mate. Aplicado a mampara o muro con cinta de doble capa de alto desempeño . Ver detalles en anexo \nTipo: aplicado a una cara \nColor: ACM Marron.\nMedidas finales: 31x5cm  \nTexto y símbolo: en film vinílico Blanco\nVer detalles.","Interior","I",26,null,0]
[null,11,"Cartel con símbolo y texto,  aplicado a mampara o muro. Medidas Finales: 31x11cm\nCartel indicativo con texto, placas aplicado a mampara o muro. \nMaterial: Placa ACM Blanco de 4mm perfilado, terminaciones de los bordes y cara inversa pintada con laca color blanco acabado mate. Aplicado a mampara o muro con cinta de doble capa de alto desempeño . Ver detalles en anexo \nTipo: aplicado a una cara \nColor: ACM Blanco.\nMedidas finales: 31x11cm\nTexto y símbolo: en film vinílico Marrón\nVer detalles.","Interior","J",26,null,0]
[null,12,"Panel de ACM aplicado a pared o mampara. Medida sobrebase: 70x100cm\nMaterial:  Placa ACM Blanco de 4mm perfilado. Rigidización con bastidor de caño metálico de 30mm en el perimetro.  Terminaciones de los bordes, bastidor pintado con laca color blanco acabado mate. aplicado a mampara o muro. \nTipo: Aplicado al muro a una cara.\nColor: Placas: ACM Blanco\nMedidas Finales: Placa: 70x100 cm\nTexto y símbolo: en film vinílico marrón\nVer detalles","Interior","K",33,null,0]
[null,13,"Cartel vertical con símbolo y texto, dos placas combinadas, aplicado a mampara o muro. Medida Placa Final: 15x45cm\nMaterial: Placa ACM Marrón de 4mm perfilado. Rigidización con bastidor de caño metálico de 10mm en el perimetro. aplicado a mampara o muro.  Terminaciones de los bordes, cara inversa y bastidor pintado con laca color blanco acabado mate. Sujeción con cinta de doble capa de alto desempeño . \nTipo: aplicado a una cara \nColor: ACM Marrón.\nMedidas finales: 15x45cm  \nTexto y símbolo: en film vinílico blanco\nVer detalles.","Interior","L",25,null,0]
[null,14,"Pintura acrílica vial, de números (1, 2, 3 ) en celdas, aplicado a muro. Medidas: altura de números 60cm y espesor 10cm. ","Interior","N",2,null,0]
[null,15,"Escudo del Paraguay: en acero inoxidable con terminación satinada esmerilada, espesor minimo 3mm, diámetro exterior de circunferencia 60cm. Sobre base de PVC rígido negro de 1,5cm de espesor. Para su montaje en revestido de madera de sala de Juicios Orales realizar fijación mediante tornillos y tarugos con una separacion minima del revestido de 5 cm.\nVer detalles.","Interior","Ñ.1",2,null,0]
[null,16,"Escudo del Paraguay: en acero inoxidable con terminación satinada esmerilada, espesor minimo 10mm, diámetro exterior de 1,50 m, para su montaje en muro de fachada, 3° piso, espesor de 8 cm.\nVer detalles.","Interior","Ñ.2",1,null,0]
[null,17,"Pintura acrílica vial  indicadora de estacionamiento de vehiculos para minusválidos y embarazadas. Base epóxica en blanco y azul\nDiámetro exterior 1,20m.\nVer detalles.","Interior-Exterior","O",13,null,0]
[null,18,"Cartel vertical con símbolo y texto, dos placas combinadas, aplicado a mampara o muro. Medida Placa: 40X50cm\nMaterial:  Placa ACM Marrón de 4mm perfilado. Rigidización con bastidor de caño metálico de 30mm en el perimetro.  Terminaciones de los bordes, cara inversa y bastidor pintado con laca color blanco acabado mate. aplicado a mampara o muro. \nTipo: Aplicado al muro a una cara.\nColor: Placas: ACM Marrón\nMedidas finales: 40X50cm  \nTexto y símbolo: en film vinílico de colores según detalle.\nVer detalles.\n","Interior","P",12,null,0]
[null,19,"Pintura acrílica vial de números en estacionamiento de vehículos sobre pavimento de hormigón, Diametro de 0,70 mts. Interior/exterior","Interior-Exterior","Q",29,null,0]
[null,20,"Banda separadora de vehículos de pintura acrílica vial. Ancho de banda 15cm y 5m de longitud. Considerar en unidades.","Interior-Exterior","R",116,null,0]
[null,21,"Pintura acrílica vial, indicadora en cordon de calle amarilla para no estacionar vehiculos frente a boca de incendio siamesa. Sobre cordon de hormigón, acrilica vial. Ancho 30 cm. largo 6 m. Unidad","Exterior","RR",1,null,0]
[null,22,"Pintura acrílica vial de franjas amarillas de flechas direccionales en estacionamientos indicando doble sentido o sentido único de circulación sobre pavimento de hormigón. Medidas : 1,30x3,00mts","Interior/Exterior","R.a",17,null,0]
[null,23,"Banda separadora de vehículos de pintura acrílica vial. Ancho de banda 15cm y 2,50m de longitud. Considerar en unidades.","Interior-Exterior","Rm",31,null,0]
[null,24,"Tipo: Letras individuales de acero inoxidable satinado esmerilado de 35cm de alto, espesor 8cm y largo total 3,70+4,70. Texto: TEKOJOJA ROGA / PALACIO DE JUSTICIA\nUbicación: Fachada Bloque B, muro de fachada 3er. Piso","Exterior","T1",1,null,0]
[null,25,"Cartel en letras corpóreas de material seún Tipo. Letras individuales de acero inoxidable. Adosadas al muro. Según planos\nColor: del material\nTerminación con barníz natural sólo para los casos exteriores\nVer detalles.\nTipo: Letras individuales de acero inoxidable satinado esmerilado de 25 cm de alto, espesor 8cm y largo total 2,85. Texto: \nJUZGADO DE PAZ\nUbicación: Planta baja, fachada muro de mampostería","Interior","T2",1,null,0]
[null,26,"Cartel en letras corpóreas de material seún Tipo. Letras individuales de acero inoxidable. Según planos\nMaterial: Según detalles\nColor: del material\nTerminación con barníz natural sólo para los casos exteriores\nVer detalles.\nTipo: Letras individuales de acero inoxidable satinado esmerilado de 20 cm de alto, espesor 4cm y largo total 1,55 Texto: CAFETERÍA.\nUbicación: en muro fachada nivel de planta baja.","Exterior","T3",1,null,0]
[null,27,"Cartel en letras corpóreas de material seún Tipo. Letras individuales de PVC rígido. Adosadas al Muro. Según planos\nColor: a definir\nTerminación con barníz natural sólo para los casos exteriores\nVer detalles.\nTipo: Letras individuales de PVC rígido, colores a definición, de 20 cm de alto, espesor 4cm y largo 1,40+1,10 mts. Texto: Guardería Infantil\nUbicación: Subsuelo 2, fachada muro de mampostería\n","Exterior","T4",1,null,0]
[null,28,"Módulo Autoportante para Exterior, dos placas de ACM, montado en bastidor de tubo de aluminio negro con refuerzos interiores. Medida Placa: 0,40x1,20 mts.\nTipo: texto y símbolos aplicados a dos caras\nMaterial: 2 placas de ACM de 4mm, aplicado en bastidor de estructura  de caño de aluminio anodizado natural de 40x40mm, o caño metálico de 40x80mm\n esp. 2mm; soldado, pulido y protegido con pintura electrostática color aluminio. Terminaciones de los bordes y cara inversa de las placas pintadas con laca color negro acabado mate. \nColor: ACM Marrón\nMedidas: Medidas finales :0,38x1,48 mts. Medidas placa: 0,40x1,20 mts.  \nTexto y símbolo: en film vinílico blanco, protección con barniz poliuretano\nVer detalles.","Exterior","U",12,null,0]
[null,29,"Módulo Autoportante para Exterior, dos placas de ACM, montado en bastidor de tubo de aluminio o caño metálico, con refuerzos interiores . Medida Placa: 0,30x0,15 mts.\nTipo: texto y símbolos aplicados  a dos caras\nMaterial: 2 de placas ACM de 4mm aplicado a bastidor de caños de aluminio color negro de 40x80mm, fijación al bastidor a travez de tubo de refuerzo de aluminio anodizado natural de 40x80mm y planchuelas remachadaso, o caño metálico de 40x80mm\n esp. 2mm; soldado, pulido y protegido con pintura electrostática color aluminio.. Terminaciones de los bordes y cara inversa de las placas pintadas con laca color negro acabado mate. \nColor: ACM Marrón\nMedidas: Medidas bastidor :Ver detalle. Medidas placa: 0,30x0,15 mts.  \nTexto y símbolo: en film vinílico blanco, protección con barniz poliuretano\nVer detalles.\n","Exterior","V",26,null,0]
[null,30,"Cartel con símbolo y texto, dos placas combinadas, aplicado a mampara o muro. Medida Placa: 40x40cm\nMaterial: Placa ACM de 4mm perfilado,  terminaciones de los bordes y cara inversa pintada con laca color blanco acabado mate, aplicado a muro, atornillado a muro; con planchuelas metálicas  de fijación de 5cmx5cm en caso de rejas.  Ver detalles en anexo \nTipo: aplicado a una cara \nColor: ACM Marrón\nMedidas Finales: 40x40cm\nTexto y símbolo: en film vinílico blanco, protección con barniz poliuretano\nVer detalles.","Exterior","W",3,null,0]
[null,31,"Cartel con símbolo y texto, dos placas combinadas, aplicado a muro. Medida Placa: 30x15cm\nMaterial: Placa ACM de 4mm perfilado,  terminaciones de los bordes y cara inversa pintada con laca color blanco acabado mate, aplicado a muro, atornillado a muro; con planchuelas metálicas  de fijación de 5cmx5cm en caso de rejas. Ver detalles en anexo muro. Ver detalles en anexo \nTipo: aplicado a una cara \nColor: ACM Marrón\nMedidas Finales: 30x15cm\nTexto y símbolo: en film vinílico blanco, protección con barniz poliuretano\nVer detalles.","Exterior","X",3,null,0]
[null,32,"Módulo Autoportante para Exterior, dos placas de ACM, montado en bastidor de tubo de aluminio con refuerzos interiores o caños metálicos. Medida Placa: 0,40X1,30\nTipo: texto y símbolos aplicados a dos caras\nMaterial: placas ACM de 4mm. Aplicado a bastidor de caños de aluminio color negro de 40x80mm, fijación al bastidor a travez de tubos de refuerzo de aluminio anodizado de 40x80mm y planchuelas remachadas; o caño metálico de 40x80mm\n esp. 2mm; soldado, pulido y protegido con pintura electrostática. Terminaciones de los bordes y cara inversa de las placas pintadas con laca color negro acabado mate. \nColor: ACM Marrón\nMedidas: Medidas finales :0,48x2,00 mts. Medidas placa: 0,40x1,30 mts.  \nTexto y símbolo: en film vinílico Blanco, protección con barniz poliuretano\nVer detalles.\n","Exterior","Y",1,null,0]
[null,33,"Carteles de señalización de calles\nTipo: en bandera a aplicado (a ambas caras) con carteles en cruz\nMaterial: Chapa N° 14 con pintura antióxido para intemperie y terminación pintura automotriz.Estructura: caño galvanizado de 2\", planchuela de unión de 1 1/2\" x 3/16\". Sujecion mediante bulones galvanizados de 3/4\" con arandelas a presion.\nColor: Beige con marrón. Medidas: alto de caño 3,00m, chapas con nombre de calles 34x68cm, con sentido de calles 34x34cm, separación entre carteles 4cm\nTexto: En film vinílico negro con protección en barniz poliuretano para exterior.\nVer detalles.","Exterior","Z",2,null,0]
[null,34,"Módulo Autoportante para Exterior, dos placas de ACM, montado en bastidor de tubo de aluminio con refuerzos interiores o tubos metálicos. Medida Placa: 0,70x1,20 mts.\nTipo: texto y símbolos aplicados a dos caras\nMaterial: 2 placas de ACM de 4mm. Aplicado a bastidor de caños de aluminio color negro de 40x80mm, fijación al bastidor a travez de tubos de refuerzo de aluminio anodizado natural de 40x80mm y planchuelas remachadas ; o caño metálico de 40x80mm\n esp. 2mm; soldado, pulido y protegido con pintura electrostática. Terminaciones de los bordes y cara inversa de las placas pintadas con laca color negro acabado mate. \nColor: ACM marrón\nMedidas: Medidas finales :0,78x1,60 mts. Medidas placa: 0,70x1,20 mts. \nTexto y símbolo: en film vinílico blanco, protección con barniz poliuretano\nVer detalles.\n","Exterior","A.i",1,null,0]
[null,35,"Pintura acrílica vial de  area de señalización de \"No Estacionar\" en zonas de estacionamiento,  interior/exterior. Superficie: 15 m2","Interior","A.p",5]
[null,36,"Impresión digital adhesiva en muros en vinilo adhesivo fundido y termoformable.\nBase de aplicación con placa de PVC rígido de 5mm. Dimensiones aproximadas: 1,20x 2,40mts. Superficie: 2,90m2","Interior","P.m",13,null,0]
[null,37,"Impresión digital adhesiva en muros en vinilo adhesivo fundido y termoformable. Base de aplocación: 5 unidades de circulos de base placa de PVC rígido de 5mm. Dimensiones :15cm de diametro.  (Imagenes fondo de percheritos)","Interior","P.m11",1,null,0]
[null,38,"Impresión digital adhesiva sobre abertura de vidrio en vinilo adhesivo fundido y termoformable. Dimensiones aproximadas: 3,80x1,20mts. Superficie: 5 m2","Interior","P.m12",1,null,{"$f":"+F44*G44","v":0}]
[null,39,"Impresión digital adhesiva simil arenado en puertas corredizas de vidrio, con calado del diseño del modelo; pegado en lado interior del vidrio. Medidas: 4,20x0,60mts","Interior","PLOT1",4,null,0]
[null,40,"Impresión digital adhesiva simil arenado en puertas corredizas de vidrio, con calado del diseño del modelo; pegado en lado interior del vidrio. Medidas: 3,00x0,50mts","Interior","PLOT2",1,null,0]
[null,41,"Elaboracion de inventario en base a la descripcion de las especificaciones tecnicas. \nSe considera como global para todo el equipamiento a proveer.\nVer detalles.","-","General",1,null,0]
[null,42,"Deposito de las señalizaciones interiores y exteriores. Incluye guardia 24 horas y seguro contra todo riesgo.","-","General",1,null,0]
[null,43,"Montaje de las señalizaciones interiores y exteriores que debera ser realizado en un plazo no mayor a un mes antes de la recepcion provisoria del lote.","-","General",1,null,0]
[null,"TOTAL GENERAL IVA INCLUIDO",{"$nulls":5},{"$f":"SUM(H7:H49)","v":0}]

{"sheet":"Láminas 1","index":3,"n_rows":19,"n_cols":5,"rows_kept":19,"cut":false,"hidden":false,"merged":[[2,1,2,2],[2,3,2,4],[16,1,16,4],[18,1,18,4]]}
[]
[null,"LOTE 1 - JUZGADOS DE 1° INSTANCIA DE FERNANDO DE LA MORA"]
[null,"LISTADO DE LAMINAS",null,"FECHA:   Agosto 2025"]
[null,"ITEM","DESCRIPICION","NOMBRE ","ESCALA"]
[null,null,null,"DEL ARCHIVO"]
[null," MOBILIARIO INTERIOR"]
[null,1,"Planta Subsuelo 2","SEÑ01","1/100"]
[null,1,"Subsuelo 1","SEÑ02","1/100"]
[null,2,"Planta Baja","SEÑ03","1/100"]
[null,3,"Planta 1° Piso","SEÑ04","1/100"]
[null,4,"Planta 2° Piso y 3° Piso","SEÑ05","1/100"]
[null,5,"Planta 4° Piso y 5° Piso","SEÑ06","1/100"]
[null,6,"Planta 6° Piso y Azotea","SEÑ07","1/100"]
[null,null,"DETALLES CONSTRUCTIVOS CARTELES"]
[null,1,"Detalles Constructivos Carteles","01 al 13","s/e"]
[]
[null,"* Los planos se encuentran en formato pdf de adobe acrobat, para plotear en hoja tamaño 800x1100mm. En el programa de impresión en Escala de pagina colocar en ninguno.\n* Los detalles constructivos en formato  pdf de adobe acrobat, para imprimir en hoja tamaño carta."]
[null,"* Los planos seran entregados en digital e independiente al pliego."]
[null,"* Prestar atención a los detalles y especificaciones de los items de los distintos lotes porque  pueden diferir teniendo el mismo código."]

{"sheet":"Láminas 2","index":4,"n_rows":17,"n_cols":5,"rows_kept":17,"cut":false,"hidden":false,"merged":[[2,1,2,2],[2,3,2,4],[14,1,14,4],[16,1,16,4]]}
[]
[null,"LOTE 2 - PALACIO DE JUSTICIA DE FILADELFIA"]
[null,"LISTADO DE LAMINAS",null,"FECHA:   Agosto 2025"]
[null,"ITEM","DESCRIPICION","NOMBRE ","ESCALA"]
[null,null,null,"DEL ARCHIVO"]
[null," MOBILIARIO INTERIOR"]
[null,1,"Planta Baja","SEÑ01","1/100"]
[null,1,"Planta Baja","SEÑ02","1/100"]
[null,2,"Primer Piso","SEÑ03","1/100"]
[null,3,"Segundo Piso","SEÑ04","1/100"]
[null,4,"Tercer Piso y Azotea","SEÑ05","1/100"]
[null,null,"DETALLES CONSTRUCTIVOS CARTELES"]
[null,1,"Detalles Constructivos Carteles","01 al 12","s/e"]
[]
[null,"* Los planos se encuentran en formato pdf de adobe acrobat, para plotear en hoja tamaño 800x1100mm. En el programa de impresión en Escala de pagina colocar en ninguno.\n* Los detalles constructivos en formato  pdf de adobe acrobat, para imprimir en hoja tamaño carta."]
[null,"* Los planos seran entregados en digital e independiente al pliego."]
[null,"* Prestar atención a los detalles y especificaciones de los items de los distintos lotes porque  pueden diferir teniendo el mismo código."]